bitfinex/quotes_ETHUSD_20250702
["timestamp","ask_amount","ask_price","bid_price","bid_amount"]
[1751442505417,0.7751,2452.0,2451.9,29.25931271]
[1751442505624,0.01,2452.0,2451.9,29.25931271]
[1751442506183,0.01,2452.0,2451.9,30.02191271]
[1751442507724,0.01,2452.1,2452.0,14.07830342]
[1751442508028,0.01,2452.1,2452.0,14.90090342]
[1751442509001,0.01,2452.1,2452.0,44.90090342]
[1751442509235,0.01,2452.1,2452.0,37.74397542]
[1751442509640,0.01,2452.5,2452.2,14.0779708]
[1751442509933,0.01,2452.5,2452.4,21.49308119]
[1751442510637,0.01,2452.5,2452.4,21.69716905]
[1751442512514,0.01,2452.5,2452.4,30.08008119]
[1751442513562,0.01,2452.5,2452.4,21.49308119]
[1751442514148,0.01,2452.5,2452.4,14.28083823]
[1751442514435,0.01,2452.5,2452.4,22.86683823]
[1751442514837,0.01,2452.5,2452.4,12.86683823]
[1751442515031,0.01,2452.5,2452.4,22.86683823]
[1751442524056,0.01,2452.5,2452.4,10.2032]
[1751442524220,0.7661,2452.5,2452.4,22.86583823]
[1751442525154,0.7661,2452.5,2452.4,18.7882]
[1751442525343,0.7661,2452.5,2452.4,22.86583823]
[1751442527120,0.7661,2452.5,2452.4,14.28083823]
[1751442527325,0.7661,2452.5,2452.4,22.86583823]
[1751442527553,0.7661,2452.5,2452.4,14.28083823]
[1751442527756,0.7661,2452.5,2452.4,22.86583823]
[1751442528260,0.7661,2452.5,2452.4,14.28083823]
[1751442528426,0.7661,2452.5,2452.4,22.86583823]
[1751442529256,0.7661,2452.5,2452.4,14.28083823]
[1751442529430,0.7661,2452.5,2452.4,22.86583823]
[1751442530159,0.7661,2452.5,2452.4,14.28083823]
[1751442530359,0.7661,2452.5,2452.4,22.86583823]
[1751442530561,0.7661,2452.5,2452.4,22.86783823]
[1751442534661,0.7661,2452.5,2452.4,22.86583823]
[1751442535153,0.7661,2452.5,2452.4,14.28083823]
[1751442535355,0.7661,2452.5,2452.4,22.86583823]
[1751442535656,0.7661,2452.5,2452.4,10.2032]
[1751442535852,0.7661,2452.5,2452.4,22.86583823]
[1751442536235,0.7661,2452.5,2452.4,18.7882]
[1751442536434,0.7661,2452.5,2452.4,22.86583823]
[1751442537635,0.7661,2452.5,2452.4,18.7882]
[1751442538160,0.7661,2452.5,2452.4,14.28083823]
[1751442538337,0.7661,2452.5,2452.4,18.7882]
[1751442539646,0.7661,2452.5,2452.4,22.86583823]
[1751442540569,0.7661,2452.5,2452.4,18.7882]
[1751442541064,0.7661,2452.5,2452.4,22.86583823]
[1751442541946,0.7661,2452.5,2452.4,18.7882]
[1751442542347,0.7661,2452.5,2452.4,22.86583823]
[1751442542840,0.7661,2452.5,2452.4,18.7882]
[1751442544467,0.7661,2452.5,2452.4,22.86583823]
[1751442544671,0.7661,2452.5,2452.4,18.7882]
[1751442545540,0.7661,2452.5,2452.4,22.86583823]
[1751442547269,0.7661,2452.5,2452.4,18.7882]
[1751442548071,0.7661,2452.5,2452.4,0.2032]
[1751442548273,0.7661,2452.5,2452.4,8.7882]
[1751442548573,0.7661,2452.5,2452.4,18.7882]
[1751442549344,1.74472301,2452.5,2452.4,18.7882]
[1751442549551,1.74472301,2452.5,2452.4,10.2032]
[1751442549770,1.74472301,2452.5,2452.4,18.7882]
[1751442550576,1.74472301,2452.5,2452.4,10.2032]
[1751442550771,1.74472301,2452.5,2452.4,18.7882]
[1751442553187,1.74472301,2452.5,2452.4,12.2042]
[1751442553373,1.74472301,2452.5,2452.4,18.7882]
[1751442553573,2.04263832,2452.5,2452.4,18.7882]
[1751442556011,2.04263832,2452.5,2452.4,18.7892]
[1751442557398,2.04263832,2452.5,2452.4,10.2032]
[1751442557594,2.04263832,2452.5,2452.4,18.7892]
[1751442557803,1.74472301,2452.5,2452.4,18.7892]
[1751442558682,1.74472301,2452.5,2452.4,10.2032]
[1751442559103,1.74472301,2452.5,2452.4,18.7892]
[1751442562100,1.74472301,2452.5,2452.4,10.2032]
[1751442562309,1.74472301,2452.5,2452.4,18.7892]
[1751442565024,0.98862301,2452.5,2452.4,18.7892]
[1751442565213,0.01,2452.5,2452.4,18.7892]
[1751442566290,0.98776165,2452.5,2452.4,18.7892]
[1751442567643,0.98776165,2452.5,2452.4,10.2032]
[1751442567852,0.98776165,2452.5,2452.4,18.7892]
[1751442568147,0.98776165,2452.5,2452.4,10.2032]
[1751442568314,0.98776165,2452.5,2452.4,18.7892]
[1751442574148,0.98776165,2452.5,2452.4,10.2032]
[1751442574343,0.98776165,2452.5,2452.4,18.7892]
[1751442574544,0.98776165,2452.5,2452.4,10.2032]
[1751442574751,0.98776165,2452.5,2452.4,18.7892]
[1751442576030,0.98776165,2452.5,2452.4,12.2042]
[1751442576245,0.98776165,2452.5,2452.4,18.7892]
[1751442576852,0.98776165,2452.5,2452.4,16.7882]
[1751442577057,0.98776165,2452.5,2452.4,18.7892]
[1751442577254,1.28760083,2452.5,2452.4,10.2032]
[1751442577463,1.28760083,2452.5,2452.4,18.7892]
[1751442577630,1.28760083,2452.5,2452.4,10.2032]
[1751442577825,1.28760083,2452.5,2452.4,18.7892]
[1751442579429,0.98776165,2452.5,2452.4,18.7892]
[1751442580853,0.98776165,2452.5,2452.4,10.2032]
[1751442581062,0.98776165,2452.5,2452.4,18.7892]
[1751442581732,0.98776165,2452.5,2452.4,10.2032]
[1751442581932,0.98776165,2452.5,2452.4,18.586]
[1751442582135,1.28760083,2452.5,2452.4,18.586]
[1751442582359,1.28760083,2452.5,2452.4,10.0]
[1751442582562,1.28760083,2452.5,2452.4,18.586]
[1751442585264,1.28760083,2452.5,2452.4,10.0]
[1751442585470,1.28760083,2452.5,2452.4,18.586]
[1751442586335,1.28760083,2452.5,2452.4,10.0]
[1751442586535,1.28760083,2452.5,2452.4,18.586]
[1751442587269,1.28903854,2452.5,2452.4,18.586]
[1751442592043,0.98919936,2452.5,2452.4,18.586]
[1751442592371,0.98919936,2452.5,2452.4,10.2032]
[1751442592550,0.98919936,2452.5,2452.4,18.7882]
[1751442592956,0.98912035,2452.5,2452.4,18.7882]
[1751442593844,0.98912035,2452.5,2452.4,10.2032]
[1751442594178,0.7773,2452.4,2452.3,0.02]
[1751442594381,3.18352078,2452.4,2452.3,0.02]
[1751442595252,1.95962035,2452.4,2452.3,0.02]
[1751442595563,3.59135608,2452.4,2452.3,0.02]
[1751442595760,4.88152591,2452.4,2452.3,0.02]
[1751442596258,5.43152591,2452.4,2452.3,0.02]
[1751442597750,3.79979018,2452.4,2452.3,0.02]
[1751442598539,3.79979018,2452.4,2452.3,2.021]
[1751442599172,3.79979018,2452.4,2452.3,2.001]
[1751442599469,10.18943314,2452.4,2452.3,2.001]
[1751442600166,12.63182847,2452.4,2451.6,10.0212]
[1751442600367,1.2211987,2452.0,2451.7,2.001]
[1751442600569,0.97912035,2451.9,2451.7,8.586]
[1751442600778,0.97912035,2451.8,2451.7,8.586]
[1751442605760,0.97585522,2452.0,2451.7,8.7892]
[1751442605943,0.97585522,2451.9,2451.7,8.7892]
[1751442606143,2.2178987,2452.2,2451.7,8.7892]
[1751442606369,0.97579687,2452.1,2451.7,8.7892]
[1751442606580,0.97579687,2452.0,2451.7,8.7892]
[1751442606846,0.97579687,2451.9,2451.8,8.586]
[1751442607952,0.97579687,2451.9,2451.7,0.2032]
[1751442608153,2.2178987,2452.2,2451.8,8.586]
[1751442608462,1.49137006,2452.1,2451.8,8.586]
[1751442608663,0.97570446,2452.0,2451.8,8.586]
[1751442608987,0.97570446,2451.9,2451.7,0.2032]
[1751442609161,0.5156656,2452.1,2451.8,8.586]
[1751442609360,0.9756679,2452.0,2451.8,8.586]
[1751442609575,0.9756679,2451.9,2451.7,0.2032]
[1751442609779,0.5156656,2452.1,2451.8,8.586]
[1751442609979,1.2490223,2452.0,2451.8,8.586]
[1751442610175,0.97566587,2451.9,2451.8,8.586]
[1751442613902,0.97566587,2451.9,2451.7,0.2032]
[1751442614104,0.97566587,2451.9,2451.8,8.586]
[1751442614304,0.97566587,2451.9,2451.7,0.2032]
[1751442614305,0.97578865,2451.9,2451.7,0.2032]
[1751442614470,0.5156656,2452.1,2451.7,0.2032]
[1751442614670,0.97585606,2452.0,2451.7,0.2032]
[1751442614870,0.97585606,2451.9,2451.8,8.586]
[1751442619363,0.97585606,2451.9,2451.7,0.2032]
[1751442619570,0.97585606,2451.8,2451.7,0.2032]
[1751442619789,0.97585606,2451.8,2451.7,8.7892]
[1751442620688,0.97585606,2451.8,2451.7,0.2032]
[1751442620887,0.97585606,2451.8,2451.7,8.7892]
[1751442621807,0.97585606,2451.8,2451.7,0.2032]
[1751442621984,0.97585606,2451.8,2451.7,8.7892]
[1751442622388,0.97762603,2451.8,2451.7,8.7892]
[1751442622693,0.97762603,2451.8,2451.7,0.2032]
[1751442622898,0.97762603,2451.8,2451.7,8.7892]
[1751442624680,0.97849386,2451.8,2451.7,8.7892]
[1751442626486,0.97849386,2451.8,2451.7,9.5423]
[1751442630775,0.97849386,2451.8,2451.7,0.2032]
[1751442630979,1.19865498,2451.8,2451.7,8.7892]
[1751442631705,1.19865498,2451.8,2451.7,0.2032]
[1751442632092,1.19865498,2451.8,2451.7,8.7892]
[1751442632280,1.19865498,2451.8,2451.7,0.2032]
[1751442632476,1.19865498,2451.8,2451.7,8.7892]
[1751442632691,0.97849386,2451.8,2451.7,8.7892]
[1751442632911,0.97849386,2451.8,2451.7,0.2032]
[1751442633111,0.97849386,2451.8,2451.7,8.7892]
[1751442636586,0.97849386,2451.8,2451.7,0.2032]
[1751442636791,0.97849386,2451.8,2451.7,2.2042]
[1751442636992,2.42177231,2451.8,2451.7,8.7892]
[1751442638815,2.42177231,2451.8,2451.7,0.2032]
[1751442639111,2.42177231,2451.8,2451.7,8.7892]
[1751442640003,0.97849386,2451.8,2451.7,0.9645]
[1751442640311,0.97849386,2451.8,2451.7,13.62930246]
[1751442641415,0.97849386,2451.8,2451.7,9.5505]
[1751442641589,0.97849386,2451.8,2451.7,13.62930246]
[1751442642886,0.97849386,2451.8,2451.7,23.62930246]
[1751442646118,0.97849386,2451.8,2451.7,10.9645]
[1751442646288,0.97849386,2451.8,2451.7,19.5485]
[1751442646488,1.22371926,2452.0,2451.8,10.0]
[1751442646802,1.22371926,2452.0,2451.7,9.5485]
[1751442646803,1.22371926,2452.0,2451.9,6.584]
[1751442647004,2.2026952,2452.0,2451.9,6.7872]
[1751442647504,2.2026952,2452.0,2451.9,0.2032]
[1751442647820,2.2026952,2452.0,2451.9,8.7872]
[1751442648487,2.2026952,2452.0,2451.9,0.2032]
[1751442648694,2.2026952,2452.0,2451.9,8.7872]
[1751442648919,2.2026952,2452.0,2451.9,0.2032]
[1751442649223,2.58579121,2452.0,2451.9,8.7872]
[1751442649423,2.58579121,2452.0,2451.9,0.2032]
[1751442649626,3.41269121,2452.0,2451.8,0.2032]
[1751442649957,2.43371527,2452.0,2451.9,8.584]
[1751442650119,3.412722,2452.0,2451.9,8.584]
[1751442650330,2.18900274,2452.0,2451.9,2.0]
[1751442650492,2.18900274,2452.0,2451.9,8.584]
[1751442650919,3.41278413,2452.0,2451.9,8.584]
[1751442651105,3.41278413,2452.0,2451.6,0.2232]
[1751442651311,8.3692124,2451.9,2451.7,8.584]
[1751442651510,0.97900673,2451.8,2451.7,8.584]
[1751442652519,0.97900673,2451.8,2451.6,0.2232]
[1751442652729,7.39020567,2451.9,2451.7,8.584]
[1751442652925,0.97911049,2451.8,2451.6,0.2232]
[1751442653132,7.39020567,2451.9,2451.7,8.584]
[1751442653320,0.97913929,2451.8,2451.7,8.584]
[1751442654233,0.97913929,2451.8,2451.6,0.2232]
[1751442654531,7.39020567,2451.9,2451.6,0.2232]
[1751442654532,0.97913929,2451.7,2451.6,0.2232]
[1751442654709,0.97913929,2451.7,2451.6,18.8072]
[1751442655711,0.97913929,2451.7,2451.6,10.2232]
[1751442655909,0.97913929,2451.7,2451.6,18.8072]
[1751442656502,0.97913929,2451.7,2451.6,10.2232]
[1751442656729,0.97913929,2451.7,2451.6,18.8072]
[1751442656927,0.97913929,2451.7,2451.6,10.2232]
[1751442657235,0.97913929,2451.7,2451.6,18.8072]
[1751442657533,0.97913929,2451.7,2451.6,10.2232]
[1751442657831,0.97913929,2451.7,2451.6,18.8072]
[1751442659434,0.97913929,2451.7,2451.6,10.2232]
[1751442659732,0.97913929,2451.7,2451.6,18.8072]
[1751442660906,0.97913929,2451.7,2451.6,19.6017]
[1751442664905,0.97913929,2451.7,2451.6,18.8072]
[1751442668438,0.2032,2452.1,2451.6,18.8072]
[1751442668608,1.18305383,2452.1,2451.6,18.8072]
[1751442668811,1.22396203,2451.9,2451.6,18.8072]
[1751442669010,0.97916962,2451.8,2451.6,18.8072]
[1751442669335,0.97916962,2451.7,2451.6,18.8072]
[1751442669538,0.97916962,2451.7,2451.6,18.604]
[1751442669748,0.97916962,2451.7,2451.6,22.88616883]
[1751442669960,0.97916962,2451.7,2451.6,23.71566883]
[1751442675673,0.97916962,2451.7,2451.6,26.49714642]
[1751442678146,0.97916962,2451.7,2451.6,17.91314642]
[1751442678350,0.97916962,2451.7,2451.6,19.6347]
[1751442678538,0.97916962,2451.7,2451.6,23.71366883]
[1751442678738,0.97916962,2451.7,2451.6,15.13166883]
[1751442678967,0.97916962,2451.7,2451.6,18.8052]
[1751442679143,0.97916962,2451.7,2451.6,22.88416883]
[1751442679665,1.22396203,2452.1,2451.7,14.8759859]
[1751442679845,0.97934546,2452.0,2451.9,0.2032]
[1751442680240,0.97934546,2452.0,2451.9,8.7852]
[1751442680667,0.97934546,2452.0,2451.9,0.2032]
[1751442680964,0.97934546,2452.0,2451.9,8.7852]
[1751442682269,0.97934546,2452.0,2451.9,0.2032]
[1751442682569,0.97934546,2452.0,2451.9,8.7852]
[1751442682758,0.97934546,2452.0,2451.9,0.2032]
[1751442682962,0.97934546,2452.0,2451.9,8.7852]
[1751442683466,0.97934546,2452.0,2451.9,0.2032]
[1751442683672,1.28228621,2452.0,2451.9,8.7842]
[1751442686763,1.28228621,2452.0,2451.9,0.2032]
[1751442687154,1.28228621,2452.0,2451.9,8.7842]
[1751442687671,1.28228621,2452.0,2451.9,0.2032]
[1751442687976,1.28228621,2452.0,2451.9,8.7842]
[1751442689078,2.07078621,2452.0,2451.9,8.7842]
[1751442689373,2.07078621,2452.0,2451.9,0.2032]
[1751442689672,2.07078621,2452.0,2451.6,0.02]
[1751442689673,0.2032,2451.9,2451.6,0.02]
[1751442689875,7.14244296,2451.7,2451.6,0.02]
[1751442690071,8.12178842,2451.7,2451.6,0.02]
[1751442691485,9.34486067,2451.7,2451.6,0.02]
[1751442694275,10.56971248,2451.7,2451.6,0.02]
[1751442694467,10.06760358,2451.7,2451.6,0.02]
[1751442695456,11.69640153,2451.7,2451.6,0.02]
[1751442696057,10.06760358,2451.7,2451.6,0.02]
[1751442697464,11.69542689,2451.7,2451.6,0.02]
[1751442697870,10.06760358,2451.7,2451.6,0.02]
[1751442698657,10.61760358,2451.7,2451.6,0.02]
[1751442699072,13.06552764,2451.7,2451.6,0.02]
[1751442699390,10.61760358,2451.7,2451.6,0.02]
[1751442700595,9.63825812,2451.7,2451.6,0.02]
[1751442701693,17.55825812,2451.7,2451.6,0.02]
[1751442707265,18.53332994,2451.7,2451.6,0.02]
[1751442710569,28.53332994,2451.7,2451.6,0.02]
[1751442710760,30.97100951,2451.7,2451.6,0.02]
[1751442710964,28.53332994,2451.7,2451.6,0.02]
[1751442713909,28.94172994,2451.7,2451.6,0.02]
[1751442714213,28.53332994,2451.7,2451.6,0.02]
[1751442715421,28.53332994,2451.7,2451.5,0.02]
[1751442715422,0.55,2451.6,2451.5,0.02]
[1751442715584,8.22890938,2451.6,2451.5,0.02]
[1751442716418,5.78932481,2451.6,2451.5,0.02]
[1751442716603,13.70932481,2451.6,2451.5,0.02]
[1751442720897,13.15932481,2451.6,2451.5,0.02]
[1751442723917,0.97507182,2451.6,2451.5,0.02]
[1751442724095,1.17827182,2451.6,2451.5,0.02]
[1751442724780,3.42191406,2451.6,2451.5,0.02]
[1751442724987,0.97507182,2451.6,2451.5,0.8269]
[1751442725206,2.60612367,2451.6,2451.5,0.8269]
[1751442725984,0.97507182,2451.6,2451.5,0.8269]
[1751442726181,2.19809234,2451.6,2451.5,0.8269]
[1751442728808,2.19809234,2451.6,2451.5,2.8259]
[1751442729010,2.19809234,2451.6,2451.5,2.019]
[1751442729423,2.19809234,2451.6,2451.5,2.7704]
[1751442729625,0.97507182,2451.6,2451.5,2.7704]
[1751442741121,0.97507182,2451.6,2451.5,3.47770583]
[1751442741436,0.97507182,2451.6,2451.5,3.68090583]
[1751442741923,0.97507182,2451.6,2451.5,2.9736]
[1751442742735,0.97634846,2451.8,2451.7,4.07880246]
[1751442743030,1.22302052,2452.2,2451.8,0.8135]
[1751442743231,0.97625681,2452.1,2451.8,0.8135]
[1751442743413,0.97625681,2452.0,2451.8,0.8135]
[1751442743612,0.97625681,2451.9,2451.8,4.8921361]
[1751442743836,0.97625681,2452.1,2451.9,4.07836189]
[1751442744044,1.23302052,2452.3,2452.1,0.8016]
[1751442744045,0.01,2452.3,2452.1,0.8016]
[1751442744346,0.01,2452.3,2452.2,2.2022]
[1751442744513,0.98573116,2452.3,2452.2,2.2022]
[1751442749230,0.01,2452.3,2452.2,2.2022]
[1751442749429,0.98573116,2452.3,2452.2,2.2022]
[1751442750650,0.98573116,2452.3,2452.2,1.998]
[1751442750949,0.98573116,2452.3,2452.0,0.2032]
[1751442751156,0.98573116,2452.3,2451.5,0.02]
[1751442751157,7.36537412,2452.2,2451.9,1.998]
[1751442751445,2.86257062,2452.1,2451.9,1.998]
[1751442751653,0.97573116,2452.0,2451.9,1.998]
[1751442758255,0.97573116,2452.0,2451.9,2.2012]
[1751442758625,0.97573116,2452.0,2451.9,0.2032]
[1751442758924,0.97573116,2452.0,2451.9,1.998]
[1751442759137,1.29933633,2452.0,2451.9,1.998]
[1751442759659,1.29933633,2452.0,2451.7,0.2032]
[1751442759828,1.29933633,2452.0,2451.9,1.998]
[1751442759829,0.32360517,2452.0,2451.9,1.998]
[1751442760028,1.30042092,2452.0,2451.9,1.998]
[1751442760630,1.30042092,2452.0,2451.7,0.2032]
[1751442760961,0.97681575,2451.9,2451.8,8.581]
[1751442761542,0.97694622,2451.9,2451.8,8.581]
[1751442762074,0.97694622,2451.9,2451.8,1.998]
[1751442762277,0.97694622,2451.9,2451.8,8.58]
[1751442765246,0.97694622,2451.9,2451.8,9.3977]
[1751442767672,0.97694622,2451.9,2451.8,13.4763361]
[1751442767970,0.97694622,2451.9,2451.8,9.3977]
[1751442774472,0.97694622,2451.9,2451.8,9.3967]
[1751442775673,0.97694622,2451.9,2451.8,0.8177]
[1751442775970,0.97694622,2451.9,2451.8,8.579]
[1751442777171,0.97694622,2451.9,2451.7,0.2032]
[1751442777476,1.22118278,2452.0,2451.8,8.579]
[1751442777774,0.9787291,2451.9,2451.8,8.579]
[1751442778554,0.9787291,2451.9,2451.7,0.2032]
[1751442778754,1.22118278,2452.0,2451.8,8.579]
[1751442778955,0.97889883,2451.9,2451.8,8.579]
[1751442779679,0.97889883,2451.9,2451.7,0.2032]
[1751442779880,1.22118278,2452.0,2451.8,8.579]
[1751442780182,2.20033236,2451.9,2451.8,8.579]
[1751442781184,2.20033236,2451.9,2451.7,0.2032]
[1751442781354,1.22118278,2451.9,2451.8,8.579]
[1751442781563,2.20073487,2451.9,2451.8,8.579]
[1751442781962,1.64105185,2452.1,2451.8,8.579]
[1751442782257,0.52248941,2452.1,2451.8,8.579]
[1751442782484,0.01,2452.1,2451.8,8.579]
[1751442783105,1.22444327,2451.9,2451.8,8.579]
[1751442783275,2.20399789,2451.9,2451.8,8.579]
[1751442785089,2.21399789,2451.9,2451.8,8.579]
[1751442785293,2.21399789,2451.9,2451.7,0.2032]
[1751442785491,0.97955462,2451.8,2451.7,0.2032]
[1751442785894,0.97955462,2451.8,2451.7,8.7822]
[1751442787464,0.97955462,2451.8,2451.7,0.2032]
[1751442787666,0.97955462,2451.8,2451.7,8.7822]
[1751442788466,0.97955462,2451.8,2451.7,0.2032]
[1751442788668,0.97955462,2451.8,2451.7,8.7822]
[1751442788869,0.97955462,2451.8,2451.7,0.2032]
[1751442789068,0.97955462,2451.8,2451.7,8.7822]
[1751442790694,0.97955462,2451.8,2451.7,0.2032]
[1751442790993,0.97955462,2451.8,2451.7,8.7822]
[1751442794365,0.97955462,2451.8,2451.7,16.01153834]
[1751442798403,0.97955462,2451.8,2451.7,13.64540246]
[1751442798799,0.97955462,2451.8,2451.7,9.5666]
[1751442799301,0.97955462,2451.8,2451.7,13.64540246]
[1751442799804,0.97955462,2451.8,2451.7,9.5666]
[1751442800306,0.97955462,2451.8,2451.7,0.9886]
[1751442800497,0.97955462,2451.8,2451.7,8.7812]
[1751442801093,0.97955462,2451.8,2451.7,0.2032]
[1751442801299,0.97955462,2451.8,2451.7,8.7812]
[1751442802729,0.97955462,2451.8,2451.7,0.2032]
[1751442802895,0.97955462,2451.8,2451.7,8.7812]
[1751442803396,1.20095441,2451.8,2451.7,8.578]
[1751442804206,0.97955462,2451.8,2451.7,8.578]
[1751442804922,0.97955462,2451.8,2451.6,0.2032]
[1751442805088,2.03594327,2451.9,2451.6,0.2032]
[1751442805089,2.03594327,2451.9,2451.7,8.578]
[1751442805285,0.9794835,2451.8,2451.6,0.2032]
[1751442805607,2.03594327,2451.9,2451.7,8.578]
[1751442805807,1.36665133,2451.8,2451.7,8.578]
[1751442806117,1.36665133,2451.8,2451.6,0.2032]
[1751442806282,0.9794779,2451.7,2451.6,0.2032]
[1751442806486,0.9794779,2451.7,2451.6,8.7812]
[1751442813627,0.9794779,2451.7,2451.6,18.7812]
[1751442815492,0.9794779,2451.7,2451.6,19.607]
[1751442816722,0.9794779,2451.7,2451.6,23.68596883]
[1751442819037,0.9794779,2451.7,2451.6,15.10796883]
[1751442819244,0.9794779,2451.7,2451.6,23.68596883]
[1751442822649,0.9794779,2451.7,2451.6,19.607]
[1751442823364,0.9794779,2451.7,2451.6,23.68596883]
[1751442825054,0.9794779,2451.7,2451.6,19.607]
[1751442825553,0.9794779,2451.7,2451.6,23.68596883]
[1751442831837,0.9894779,2451.7,2451.6,23.68596883]
[1751442833971,0.9894779,2451.7,2451.6,19.607]
[1751442834870,0.9894779,2451.7,2451.6,23.68596883]
[1751442837870,0.9894779,2451.7,2451.6,28.16169414]
[1751442840307,0.9894779,2451.7,2451.6,18.7802]
[1751442840455,0.9894779,2451.7,2451.6,23.25592531]
[1751442840641,0.9894779,2451.7,2451.6,27.33489414]
[1751442842677,0.98958072,2451.7,2451.6,27.33489414]
[1751442846087,0.98958072,2451.7,2451.6,22.85916883]
[1751442846369,0.98958072,2451.7,2451.6,14.67892531]
[1751442846537,0.98958072,2451.7,2451.6,23.25592531]
[1751442847170,0.98958072,2451.7,2451.6,14.67892531]
[1751442847375,0.98958072,2451.7,2451.6,27.33489414]
[1751442847543,0.98958072,2451.7,2451.6,23.25592531]
[1751442847745,0.98958072,2451.7,2451.6,18.7802]
[1751442847976,0.98958072,2451.7,2451.6,22.85916883]
[1751442850580,0.98958072,2451.7,2451.6,29.25360333]
[1751442854169,0.98958072,2451.7,2451.6,30.00700333]
[1751442855086,0.01,2451.7,2451.6,30.00700333]
[1751442857390,0.01,2451.7,2451.6,21.43000333]
[1751442857575,0.01,2451.7,2451.6,23.61256883]
[1751442858700,0.01,2451.7,2451.6,23.61156883]
[1751442860300,0.01,2451.7,2451.6,15.03556883]
[1751442860595,0.01,2451.7,2451.6,23.61056883]
[1751442862800,0.01,2451.7,2451.6,24.12696364]
[1751442863304,0.01,2451.7,2451.6,23.61056883]
[1751442865672,0.01,2451.8,2451.7,14.85140246]
[1751442865902,0.01,2451.8,2451.7,29.81983696]
[1751442866106,0.01,2451.8,2451.7,30.02303696]
[1751442878816,0.01,2451.8,2451.7,30.02203696]
[1751442880524,0.01,2451.8,2451.7,21.44903696]
[1751442880730,0.01,2451.8,2451.7,30.02203696]
[1751442883313,0.01,2451.8,2451.7,20.67643696]
[1751442883547,0.01,2451.8,2451.7,14.28200246]
[1751442883741,0.01,2451.8,2451.7,22.85400246]
[1751442884622,0.01,2451.8,2451.7,30.02923696]
[1751442888262,0.01,2451.8,2451.7,29.24843696]
[1751442888443,0.01,2451.8,2451.7,29.25043696]
[1751442888643,0.01,2451.8,2451.7,16.27800246]
[1751442888844,0.01,2451.8,2451.7,22.85600246]
[1751442889361,0.01,2451.8,2451.7,16.27800246]
[1751442889569,0.01,2451.8,2451.7,22.85700246]
[1751442894976,0.01,2451.8,2451.7,23.68930246]
[1751442909112,0.01,2451.9,2451.8,14.8552361]
[1751442909326,0.01,2451.9,2451.8,21.2496706]
[1751442912833,0.01,2452.1,2452.0,4.83040342]
[1751442913065,0.01,2452.1,2452.0,27.80183792]
[1751442913399,0.01,2452.1,2452.0,28.00503792]
[1751442913599,0.01,2452.1,2452.0,28.20351919]
[1751442917715,0.01,2452.1,2452.0,28.00503792]
[1751442917908,0.01,2452.1,2452.0,27.25293792]
[1751442919640,0.01,2452.1,2452.0,29.24893792]
[1751442922346,0.01,2452.1,2452.0,20.67593792]
[1751442922513,0.01,2452.1,2452.0,29.24893792]
[1751442925262,0.01,2452.3,2452.2,4.0779708]
[1751442925569,0.01,2452.3,2452.2,27.0484053]
[1751442925914,0.01,2452.3,2452.2,27.2516053]
[1751442926119,0.01,2452.3,2452.2,29.2496053]
[1751442926447,0.01,2452.3,2452.2,22.8561708]
[1751442929621,0.01,2452.3,2452.2,29.2506053]
[1751442930355,0.01,2452.3,2452.2,39.0466053]
[1751442930652,0.7759,2452.3,2452.2,11.9952]
[1751442930820,0.7759,2452.3,2452.2,22.6511708]
[1751442931021,0.7759,2452.3,2452.2,32.6511708]
[1751442931555,0.7759,2452.3,2452.2,9.9992]
[1751442931739,0.7759,2452.3,2452.2,28.5772]
[1751442932172,0.7759,2452.3,2452.2,10.2032]
[1751442932369,1.75360466,2452.3,2452.2,18.578]
[1751442932677,2.05216571,2452.3,2452.2,18.578]
[1751442934175,2.05216571,2452.3,2452.2,11.996]
[1751442934375,2.05216571,2452.3,2452.2,18.579]
[1751442935386,2.05216571,2452.3,2452.2,10.0]
[1751442935551,7.68070021,2452.3,2451.9,0.02]
[1751442935755,1.38612123,2452.2,2451.9,2.016]
[1751442935952,0.97770466,2452.1,2451.9,2.016]
[1751442936153,3.02311053,2452.0,2451.9,0.02]
[1751442936481,3.43369569,2452.0,2451.9,0.02]
[1751442936692,3.84132799,2452.0,2451.9,0.02]
[1751442936979,6.29021454,2452.0,2451.9,0.02]
[1751442937183,5.46656562,2452.0,2451.9,0.02]
[1751442937389,9.78866562,2452.0,2451.9,0.02]
[1751442937590,8.16342799,2452.0,2451.9,0.02]
[1751442938253,9.7870587,2452.0,2451.9,0.02]
[1751442940056,8.16342799,2452.0,2451.9,0.02]
[1751442941165,9.37886884,2452.0,2451.9,0.02]
[1751442943174,9.37784371,2452.0,2451.9,0.02]
[1751442944556,9.92784371,2452.0,2451.9,0.02]
[1751442944758,26.63342799,2452.0,2451.9,0.02]
[1751442944958,0.7554,2451.9,2451.6,0.02]
[1751442945159,20.8130345,2451.7,2451.6,0.02]
[1751442945379,29.71073916,2451.7,2451.6,0.02]
[1751442949181,30.9226795,2451.7,2451.6,0.02]
[1751442949378,29.71073916,2451.7,2451.6,0.02]
[1751442949579,33.7240634,2451.7,2451.6,0.02]
[1751442949969,35.34769411,2451.7,2451.6,0.02]
[1751442950195,33.7240634,2451.7,2451.6,0.02]
[1751442955301,35.34769411,2451.7,2451.6,0.02]
[1751442957506,33.7240634,2451.7,2451.6,0.02]
[1751442957707,35.34031312,2451.7,2451.6,0.02]
[1751442957881,29.49587862,2451.7,2451.6,0.02]
[1751442958770,28.94587862,2451.7,2451.6,0.02]
[1751442959182,27.3296289,2451.7,2451.6,0.02]
[1751442959708,18.94761061,2451.7,2451.6,0.02]
[1751442960007,14.93428637,2451.7,2451.6,0.02]
[1751442960605,13.31630466,2451.7,2451.6,0.02]
[1751442961519,10.72120595,2451.7,2451.6,0.02]
[1751442961690,0.97770466,2451.7,2451.6,0.02]
[1751442962475,2.59800595,2451.7,2451.6,0.02]
[1751442964104,0.97770466,2451.7,2451.6,0.02]
[1751442965104,3.42659121,2451.7,2451.6,0.02]